bitfinex/quotes_SOLUSD_20220307
["timestamp","ask_amount","ask_price","bid_price","bid_amount"]
[1646694324280,0.04245139,82.588,82.511,122.1]
[1646694324479,0.04245139,82.588,82.51,14.43]
[1646694324480,0.04245139,82.588,82.513,122.1]
[1646694324680,0.04245139,82.588,82.515,122.1]
[1646694324884,0.04245139,82.588,82.517,122.1]
[1646694325081,0.04245139,82.588,82.521,122.1]
[1646694325282,0.04245139,82.588,82.523,122.1]
[1646694325483,0.04245139,82.588,82.525,122.1]
[1646694325781,0.04245139,82.588,82.527,122.1]
[1646694325982,0.04245139,82.588,82.529,222.1]
[1646694326182,0.04245139,82.588,82.54,18.1693]
[1646694326385,0.04245139,82.588,82.541,6.25]
[1646694326584,0.04245139,82.588,82.542,6.055]
[1646694326784,0.04245139,82.588,82.543,6.0]
[1646694326984,0.04245139,82.588,82.517,2.83613526]
[1646694326985,0.04245139,82.588,82.53,6.055]
[1646694327287,0.04245139,82.588,82.514,6.056]
[1646694327684,2.83613526,82.587,82.501,6.056]
[1646694327884,12.307,82.586,82.502,6.0]
[1646694328084,12.307,82.586,82.503,6.057]
[1646694328283,2.83613526,82.585,82.504,6.25]
[1646694328484,6.307,82.584,82.505,6.057]
[1646694328686,6.307,82.584,82.506,0.25]
[1646694328885,2.83613526,82.583,82.507,6.057]
[1646694329084,18.18,82.58,82.508,0.25]
[1646694329284,6.25,82.579,82.509,6.057]
[1646694329485,16.82613526,82.579,82.51,0.25]
[1646694329685,16.82613526,82.579,82.486,2.83613526]
[1646694329686,8.89313526,82.578,82.487,6.057]
[1646694329887,0.25,82.577,82.487,6.057]
[1646694330189,201.418,82.576,82.485,6.058]
[1646694330388,6.25,82.575,82.485,6.058]
[1646694330686,6.058,82.574,82.485,6.058]
[1646694330885,6.25,82.573,82.482,6.058]
[1646694331087,6.058,82.572,82.483,0.25]
[1646694331287,6.25,82.571,82.484,6.058]
[1646694331486,18.1834,82.56,82.484,6.058]
[1646694331687,6.25,82.559,82.482,6.058]
[1646694331887,9.08613526,82.559,82.463,6.059]
[1646694332088,6.059,82.558,82.464,6.25]
[1646694332288,6.25,82.557,82.465,6.059]
[1646694332489,6.059,82.556,82.466,6.25]
[1646694332693,6.25,82.555,82.467,6.059]
[1646694332891,18.1872,82.55,82.47,18.1864]
[1646694333091,6.25,82.549,82.471,12.309]
[1646694334091,6.25,82.549,82.471,15.14513526]
[1646694334492,6.25,82.549,82.471,9.14513526]
[1646694335091,6.25,82.549,82.471,0.25]
[1646694335297,18.1879,82.54,82.463,0.25]
[1646694335592,6.0,82.539,82.463,0.25]
[1646694335793,6.309,82.538,82.464,6.06]
[1646694335992,6.0,82.537,82.465,0.25]
[1646694336193,0.25,82.536,82.466,6.059]
[1646694336392,0.25,82.536,82.467,0.25]
[1646694336591,0.25,82.536,82.468,6.059]
[1646694336791,0.25,82.536,82.469,0.25]
[1646694336992,0.25,82.536,82.47,6.059]
[1646694337192,0.25,82.538,82.47,6.059]
[1646694337392,6.059,82.537,82.469,0.25]
[1646694337593,18.1894,82.53,82.459,6.059]
[1646694337792,18.1894,82.53,82.44,2.83613526]
[1646694337793,73.26,82.528,82.452,6.061]
[1646694337997,122.1,82.525,82.441,12.061]
[1646694338191,12.311,82.524,82.441,12.061]
[1646694338592,12.311,82.524,82.45,18.1912]
[1646694338992,12.311,82.524,82.45,21.02733526]
[1646694339192,12.311,82.524,82.451,0.25]
[1646694339392,6.25,82.524,82.452,6.061]
[1646694339592,0.25,82.524,82.453,0.25]
[1646694339793,6.0,82.538,82.454,6.061]
[1646694339794,6.311,82.537,82.454,6.061]
[1646694339995,18.1917,82.52,82.455,0.25]
[1646694340194,12.311,82.519,82.453,0.25]
[1646694341199,12.311,82.519,82.46,18.1894]
[1646694341398,6.25,82.519,82.461,6.311]
[1646694341601,0.25,82.519,82.461,6.061]
[1646694341797,0.25,82.533,82.452,6.061]
[1646694341999,0.25,82.533,82.453,0.25]
[1646694342197,18.1891,82.53,82.46,18.1892]
[1646694342401,6.25,82.529,82.461,6.059]
[1646694343206,6.25,82.529,82.462,0.25]
[1646694343402,6.25,82.529,82.47,18.1871]
[1646694343601,0.25,82.529,82.463,6.059]
[1646694343802,0.25,82.533,82.464,0.25]
[1646694344002,0.25,82.533,82.465,6.059]
[1646694344210,0.25,82.533,82.466,0.25]
[1646694344404,0.25,82.533,82.467,6.059]
[1646694344604,0.25,82.533,82.468,0.25]
[1646694344804,18.1891,82.53,82.469,6.059]
[1646694345003,6.25,82.529,82.47,0.25]
[1646694345204,6.059,82.528,82.47,0.25]
[1646694345405,6.25,82.527,82.47,0.25]
[1646694345708,0.25,82.527,82.48,18.1846]
[1646694345905,0.25,82.527,82.481,0.25]
[1646694346506,0.25,82.547,82.481,0.25]
[1646694347307,18.1875,82.54,82.471,6.059]
[1646694347507,6.25,82.539,82.459,6.059]
[1646694347707,6.25,82.539,82.46,6.0]
[1646694347908,6.25,82.539,82.461,6.059]
[1646694348113,6.059,82.538,82.459,6.059]
[1646694348312,6.25,82.537,82.459,6.059]
[1646694348512,6.059,82.536,82.462,2.83613526]
[1646694348810,6.25,82.535,82.463,6.309]
[1646694349211,0.25,82.535,82.463,6.309]
[1646694349824,6.0,82.539,82.463,6.309]
[1646694349825,18.1888,82.53,82.463,6.309]
[1646694350025,6.25,82.529,82.463,6.309]
[1646694350424,6.25,82.529,82.463,0.25]
[1646694350628,6.25,82.529,82.452,6.25]
[1646694350828,6.25,82.529,82.453,122.1]
[1646694351026,0.25,82.529,82.461,122.1]
[1646694351227,6.059,82.546,82.471,122.1]
[1646694351428,6.0,82.545,82.473,122.1]
[1646694351630,6.0,82.547,82.474,6.309]
[1646694351828,6.0,82.547,82.475,128.1]
[1646694352029,23.6673,82.561,82.477,122.1]
[1646694352227,6.0,82.551,82.479,122.1]
[1646694352432,6.0,82.551,82.48,30.4885]
[1646694352632,6.0,82.551,82.48,33.32463526]
[1646694352833,6.0,82.551,82.481,124.93613526]
[1646694353036,6.0,82.571,82.49,60.589]
[1646694353236,6.058,82.57,82.491,12.308]
[1646694353438,6.0,82.569,82.491,15.14413526]
[1646694353631,6.058,82.568,82.491,15.14413526]
[1646694353832,6.0,82.567,82.492,2.83613526]
[1646694354031,6.308,82.566,82.493,12.308]
[1646694354232,6.308,82.566,82.5,18.1767]
[1646694354432,6.308,82.566,82.501,12.308]
[1646694354633,6.0,82.565,82.501,12.308]
[1646694354832,6.308,82.566,82.501,12.308]
[1646694354833,0.25,82.564,82.501,12.308]
[1646694355833,6.308,82.575,82.501,12.308]
[1646694356037,6.0,82.574,82.51,18.1783]
[1646694356334,6.307,82.573,82.511,0.25]
[1646694356534,6.0,82.572,82.511,0.25]
[1646694356735,6.307,82.571,82.511,0.25]
[1646694356933,6.0,82.57,82.511,0.25]
[1646694357137,0.25,82.569,82.511,0.25]
[1646694357342,0.25,82.569,82.501,6.058]
[1646694357638,0.25,82.569,82.485,6.058]
[1646694357639,3.08613526,82.569,82.485,6.058]
[1646694357836,14.89413526,82.568,82.485,6.058]
[1646694358035,0.25,82.567,82.485,6.058]
[1646694358638,6.058,82.566,82.486,0.25]
[1646694358837,6.25,82.565,82.486,0.25]
[1646694359034,6.058,82.564,82.486,0.25]
[1646694359235,18.1817,82.56,82.49,18.1835]
[1646694359435,6.25,82.559,82.491,0.25]
[1646694360240,18.1843,82.55,82.491,0.25]
[1646694360439,6.25,82.549,82.491,0.25]
[1646694360639,15.22,82.549,82.491,0.25]
[1646694362439,18.1861,82.54,82.485,6.058]
[1646694362639,6.25,82.539,82.485,6.058]
[1646694362841,0.25,82.539,82.485,6.058]
[1646694363743,6.309,82.544,82.485,6.058]
[1646694363939,6.0,82.543,82.485,6.058]
[1646694364141,18.1885,82.53,82.485,6.058]
[1646694364341,6.25,82.529,82.485,6.058]
[1646694364541,0.25,82.529,82.485,6.058]
[1646694364742,6.25,82.529,82.485,6.058]
[1646694364943,0.25,82.529,82.485,6.058]
[1646694365542,18.1905,82.52,82.485,6.058]
[1646694365745,0.25,82.519,82.457,46.6889]
[1646694365943,0.25,82.519,82.458,6.25]
[1646694366144,122.1,82.518,82.427,25.87753526]
[1646694366346,122.1,82.516,82.428,47.3248]
[1646694366543,122.1,82.514,82.428,47.3248]
[1646694366743,134.412,82.513,82.428,47.3248]
[1646694367144,18.1933,82.51,82.43,18.1971]
[1646694367344,12.312,82.509,82.43,18.1971]
[1646694368143,18.1956,82.5,82.43,18.1971]
[1646694368344,12.313,82.499,82.43,18.1971]
[1646694368744,12.313,82.499,82.431,0.25]
[1646694370044,12.313,82.499,82.44,18.1949]
[1646694370846,6.0,82.499,82.441,0.25]
[1646694371046,6.062,82.533,82.441,0.25]
[1646694371246,6.0,82.518,82.441,6.25]
[1646694371450,6.0,82.518,82.45,18.1928]
[1646694371645,6.0,82.518,82.451,0.25]
[1646694371845,6.062,82.535,82.451,0.25]
[1646694372048,6.0,82.518,82.451,0.25]
[1646694372246,0.25,82.517,82.451,0.25]
[1646694372846,0.25,82.517,82.443,0.25]
[1646694373246,0.25,82.517,82.46,18.1906]
[1646694373446,6.0,82.518,82.46,18.1906]
[1646694373447,6.0,82.518,82.461,0.25]
[1646694373650,6.0,82.534,82.461,0.25]
[1646694373848,0.25,82.533,82.462,2.83613526]
[1646694374049,0.25,82.533,82.463,6.25]
[1646694374246,0.25,82.533,82.47,18.1836]
[1646694374450,6.059,82.532,82.471,0.25]
[1646694374647,0.25,82.531,82.471,0.25]
[1646694374847,6.059,82.548,82.471,0.25]
[1646694375048,6.0,82.547,82.471,0.25]
[1646694375248,6.0,82.548,82.472,2.83613526]
[1646694375449,6.0,82.548,82.473,0.25]
[1646694375651,6.0,82.548,82.48,18.1856]
[1646694375849,6.0,82.548,82.481,0.25]
[1646694376052,6.309,82.547,82.465,45.6861]
[1646694376249,201.36,82.546,82.465,45.6861]
[1646694376451,122.1,82.544,82.43,14.43]
[1646694376653,134.411,82.543,82.435,51.6861]
[1646694376850,18.1863,82.54,82.45,18.1922]
[1646694377050,35.0993,82.539,82.451,22.7793]
[1646694377250,64.5579074,82.539,82.451,22.7793]
[1646694377651,29.4586074,82.538,82.451,22.7793]
[1646694377953,6.311,82.537,82.451,22.7793]
[1646694378153,18.1901,82.53,82.451,22.7793]
[1646694378352,6.311,82.529,82.451,22.7793]
[1646694378553,6.0,82.528,82.451,22.7793]
[1646694378753,6.311,82.527,82.452,0.25]
[1646694378952,6.0,82.526,82.452,0.25]
[1646694379155,6.061,82.525,82.452,0.25]
[1646694379352,6.25,82.524,82.452,0.25]
[1646694379553,18.1914,82.52,82.452,0.25]
[1646694379753,12.311,82.519,82.452,0.25]
[1646694383081,6.311,82.519,82.452,0.25]
[1646694383660,0.25,82.519,82.452,0.25]
[1646694385461,0.25,82.519,82.451,22.7793]
[1646694385663,0.25,82.519,82.452,0.25]
[1646694386564,18.1927,82.51,82.452,0.25]
[1646694386767,0.25,82.509,82.451,22.7793]
[1646694386968,0.25,82.509,82.436,100.0]
[1646694387164,0.25,82.509,82.437,6.25]
[1646694387363,0.25,82.509,82.437,0.25]
[1646694387764,0.25,82.51,82.437,6.25]
[1646694387965,6.062,82.509,82.437,0.25]
[1646694388168,6.25,82.508,82.438,6.0]
[1646694388369,6.062,82.507,82.439,0.25]
[1646694388567,6.25,82.506,82.439,0.25]
[1646694388769,18.1955,82.5,82.439,0.25]
[1646694389067,6.25,82.499,82.439,0.25]
[1646694389467,6.25,82.499,82.438,0.25]
[1646694389667,6.25,82.499,82.439,6.062]
[1646694389868,6.25,82.499,82.44,0.25]
[1646694390690,18.198,82.49,82.44,0.25]
[1646694390992,6.25,82.489,82.437,0.25]
[1646694391191,6.25,82.489,82.431,0.25]
[1646694391392,6.25,82.489,82.413,6.063]
[1646694391692,18.1997,82.48,82.413,6.063]
[1646694391893,6.25,82.479,82.413,6.063]
[1646694392593,0.25,82.479,82.413,6.063]
[1646694392790,0.25,82.479,82.429,0.25]
[1646694392991,6.25,82.479,82.429,0.25]
[1646694393791,6.25,82.479,82.412,24.4113]
[1646694393994,18.2019,82.47,82.413,6.064]
[1646694394192,6.25,82.469,82.413,6.064]
[1646694394396,6.25,82.469,82.414,0.25]
[1646694394592,6.25,82.469,82.415,6.064]
[1646694394892,6.25,82.469,82.416,0.25]
[1646694395293,0.25,82.469,82.413,6.064]
[1646694395492,6.29,82.469,82.396,6.064]
[1646694395693,6.315,82.468,82.381,24.0143]
[1646694395897,122.1,82.467,82.382,6.0]
[1646694396100,6.066,82.466,82.383,6.066]
[1646694396395,122.1,82.459,82.383,6.066]
[1646694396593,122.1,82.457,82.382,6.066]
[1646694396793,122.1,82.455,82.382,6.066]
[1646694396996,122.1,82.453,82.382,6.066]
[1646694397192,0.25,82.452,82.382,6.066]
[1646694397393,18.2093,82.44,82.381,24.0143]
[1646694397593,0.25,82.439,82.381,24.0143]
[1646694397795,0.25,82.439,82.382,0.25]
[1646694397997,0.25,82.439,82.381,24.0143]
[1646694398694,6.0,82.439,82.381,24.0143]
[1646694399393,6.0,82.439,82.382,0.25]
[1646694400294,0.25,82.438,82.382,0.25]
[1646694401096,0.25,82.438,82.383,6.067]
[1646694401294,6.0,82.439,82.39,18.2065]
[1646694401496,6.066,82.465,82.391,0.25]
[1646694401696,6.0,82.464,82.392,6.065]
[1646694401895,6.0,82.465,82.393,0.25]
[1646694402098,6.0,82.465,82.394,6.065]
[1646694402296,47.4437,82.466,82.41,18.201]
[1646694402496,6.0,82.465,82.411,0.25]
[1646694403296,6.065,82.464,82.411,0.25]
[1646694403497,6.0,82.463,82.42,18.1997]
[1646694403696,6.0,82.465,82.411,0.25]
[1646694403898,6.0,82.464,82.397,0.25]
[1646694404098,6.0,82.464,82.398,6.065]
[1646694404311,6.065,82.477,82.399,0.25]
[1646694404500,6.0,82.476,82.4,6.065]
[1646694404801,6.065,82.475,82.401,0.25]
[1646694405000,6.0,82.474,82.401,3.08613526]
[1646694405202,18.2015,82.47,82.41,18.2015]
[1646694405400,6.315,82.469,82.411,0.25]
[1646694406200,0.25,82.469,82.411,0.25]
[1646694407408,18.204,82.46,82.4,18.2036]
[1646694407603,0.25,82.459,82.4,18.2036]
[1646694408807,6.25,82.476,82.401,0.25]
[1646694409006,18.2018,82.47,82.401,0.25]
[1646694409204,12.315,82.469,82.401,0.25]
[1646694409704,12.315,82.469,82.41,18.2018]
[1646694410405,18.2044,82.46,82.402,6.065]
[1646694410607,0.25,82.459,82.403,0.25]
[1646694410805,0.25,82.459,82.401,0.25]
[1646694411007,6.25,82.459,82.401,0.25]
[1646694411608,0.25,82.459,82.401,0.25]
[1646694411807,0.25,82.459,82.396,0.25]
[1646694412007,6.25,82.459,82.396,0.25]
[1646694412207,6.25,82.459,82.4,18.2037]
[1646694412409,18.2063,82.45,82.401,0.25]
[1646694412608,0.25,82.449,82.396,0.25]
[1646694413208,6.25,82.449,82.396,0.25]
[1646694413609,0.25,82.449,82.396,0.25]
[1646694414211,6.25,82.449,82.396,0.25]
[1646694414412,0.25,82.449,82.391,0.25]
[1646694415211,6.25,82.449,82.391,0.25]
[1646694418419,13.25,82.449,82.391,0.25]
[1646694422721,13.25,82.449,82.39,18.2048]
[1646694422926,18.2087,82.44,82.382,23.2888]
[1646694423127,128.35,82.439,82.383,0.25]
[1646694423522,6.25,82.439,82.383,0.25]
[1646694423723,6.0,82.438,82.383,0.25]
[1646694423922,0.25,82.437,82.383,0.25]
[1646694424122,0.25,82.439,82.383,0.25]
[1646694424340,0.25,82.439,82.375,0.25]
[1646694424938,6.25,82.439,82.375,0.25]
[1646694425339,0.25,82.439,82.375,3.08613526]
[1646694425540,6.25,82.452,82.375,3.08613526]
[1646694425739,6.066,82.451,82.375,3.08613526]
[1646694425938,6.25,82.45,82.375,3.08613526]
[1646694426139,18.2081,82.44,82.38,18.2084]
[1646694426340,6.25,82.439,82.381,0.25]
[1646694426840,6.25,82.439,82.381,6.25]
[1646694427040,0.25,82.439,82.381,6.25]
[1646694428441,6.25,82.439,82.381,6.25]
[1646694428843,0.25,82.439,82.381,6.25]
[1646694429242,6.25,82.439,82.381,0.25]
[1646694429442,57.24781502,82.438,82.381,48.81398323]
[1646694429743,6.25,82.437,82.381,48.81398323]
[1646694430748,0.25,82.437,82.381,48.81398323]
[1646694431142,6.25,82.437,82.381,48.81398323]
[1646694431444,18.2109,82.43,82.381,48.81398323]
[1646694431743,5.93349323,82.429,82.381,48.56398323]
[1646694431941,0.25,82.428,82.381,48.56398323]
[1646694432143,0.25,82.428,82.372,6.066]
[1646694432343,18.2144,82.42,82.373,6.25]
[1646694432645,24.4544,82.42,82.373,6.25]
[1646694433143,65.86248374,82.419,82.372,6.066]
[1646694433351,65.86248374,82.419,82.352,23.7939]
[1646694433743,65.86248374,82.419,82.318,34.10161489]
[1646694433946,151.9744,82.418,82.319,6.0]
[1646694434144,18.2185,82.41,82.34,18.2175]
[1646694434345,6.319,82.409,82.341,59.03604129]
[1646694434545,195.36,82.406,82.341,59.03604129]
[1646694434746,70.43987272,82.405,82.341,59.03604129]
[1646694434946,122.1,82.404,82.341,59.03604129]
[1646694435147,18.2189,82.4,82.341,59.03604129]
[1646694435346,6.25,82.399,82.341,59.03604129]
[1646694435546,122.1,82.398,82.341,59.03604129]
[1646694435747,122.1,82.396,82.341,59.03604129]
[1646694435949,122.1,82.394,82.32,60.7252]
[1646694436146,0.25,82.393,82.321,6.25]
[1646694436347,6.25,82.397,82.321,6.25]
[1646694436750,6.0,82.396,82.321,6.25]
[1646694436948,0.25,82.395,82.33,18.2204]
[1646694437147,0.25,82.397,82.331,6.25]
[1646694437748,0.25,82.397,82.323,6.0]
[1646694438048,63.98465021,82.389,82.323,6.0]
[1646694438248,6.25,82.388,82.323,6.0]
[1646694438747,12.321,82.388,82.323,6.0]
[1646694439150,18.2222,82.38,82.323,6.0]
[1646694439346,0.25,82.379,82.323,6.0]
[1646694439747,6.25,82.379,82.33,18.2215]
[1646694439952,6.25,82.379,82.331,6.0]
[1646694440148,0.25,82.379,82.331,6.0]
[1646694441250,6.25,82.379,82.331,6.0]
[1646694441453,0.25,82.379,82.29,60.7465]
[1646694441651,18.2242,82.37,82.3,6.0]
[1646694441850,18.2242,82.37,82.298,6.0]
[1646694442050,6.25,82.369,82.298,5.0]
[1646694442451,64.9150461,82.368,82.299,58.5641771]
[1646694442650,6.25,82.367,82.299,58.5641771]
[1646694442850,122.1,82.366,82.3,0.25]
[1646694443056,18.2274,82.36,82.298,5.0]
[1646694443254,122.1,82.355,82.261,22.6992]
[1646694443453,12.323,82.359,82.261,22.6992]
[1646694443454,122.1,82.345,82.261,22.6992]
[1646694443754,122.1,82.343,82.261,22.6992]
[1646694443950,0.25,82.342,82.262,78.91963026]
[1646694444151,6.25,82.342,82.262,78.91963026]
[1646694444351,31.1521,82.342,82.263,20.46870136]
[1646694444552,31.1521,82.342,82.264,6.0]
[1646694444753,18.2335,82.33,82.27,18.2343]
[1646694444956,57.07625179,82.328,82.271,6.25]
[1646694445155,0.25,82.327,82.271,26.21870136]
[1646694445355,6.25,82.327,82.271,26.21870136]
[1646694445555,6.25,82.327,82.272,20.21870136]
[1646694445854,6.25,82.327,82.273,6.0]
[1646694446258,6.25,82.327,82.28,18.2325]
[1646694446457,6.25,82.327,82.281,6.0]
[1646694446858,122.1,82.315,82.22,14.43]
[1646694447058,122.1,82.315,82.2,129.9895]
[1646694447059,195.36,82.305,82.234,17.9617]
[1646694447260,195.36,82.305,82.2,129.9895]
[1646694447261,18.2463,82.29,82.201,47.7877]
[1646694447560,0.25,82.289,82.201,47.7877]
[1646694447758,122.35,82.289,82.202,50.83196934]
[1646694447958,60.8328,82.28,82.202,50.83196934]
[1646694448158,52.06085237,82.278,82.202,50.83196934]
[1646694448357,18.2471,82.27,82.203,6.0]
[1646694448558,6.25,82.269,82.203,6.0]
[1646694448761,0.25,82.268,82.201,47.7877]
[1646694448957,0.25,82.268,82.18,18.627]
[1646694449159,235.57970178,82.267,82.18,18.627]
[1646694449358,18.2494,82.26,82.18,18.627]
[1646694449559,14.43,82.25,82.176,100.0]
[1646694449763,61.63323212,82.249,82.174,53.21010786]
[1646694449959,88.03596738,82.249,82.174,53.21010786]
[1646694450260,85.19983212,82.249,82.175,6.0]
[1646694450461,79.11883212,82.249,82.175,6.0]
[1646694450659,79.11883212,82.249,82.176,0.25]
[1646694452261,49.55223212,82.249,82.18,18.2507]
[1646694452462,49.55223212,82.249,82.181,0.25]
[1646694452666,49.55223212,82.249,82.176,0.25]
[1646694452864,49.30223212,82.249,82.176,0.25]
[1646694453062,49.30223212,82.249,82.187,46.94980598]
[1646694453265,14.43,82.27,82.2,18.244]
[1646694453462,14.43,82.27,82.201,0.25]
[1646694453664,6.081,82.274,82.188,6.25]
[1646694453866,6.08,82.299,82.189,0.31559945]
[1646694454066,6.08,82.299,82.191,0.31559945]
[1646694454265,63.14212334,82.298,82.191,6.56559945]
[1646694454464,63.14212334,82.298,82.193,0.31559945]
[1646694454664,63.14212334,82.298,82.21,18.2432]
[1646694454867,63.14212334,82.298,82.212,62.8583383]
[1646694454868,6.078,82.297,82.212,62.8583383]
[1646694455064,6.078,82.297,82.213,6.25]
[1646694455266,0.25,82.296,82.213,6.25]
[1646694456064,6.078,82.295,82.213,6.25]
[1646694456467,6.078,82.296,82.213,6.25]
[1646694457166,6.078,82.296,82.214,100.0]
[1646694457367,6.0,82.295,82.215,6.25]
[1646694457567,6.078,82.294,82.213,6.0]
[1646694457768,6.25,82.293,82.192,49.1142]
[1646694457967,14.43,82.29,82.193,6.0]
[1646694458169,122.1,82.288,82.166,100.0]
[1646694458368,18.2535,82.27,82.167,6.0]
[1646694458569,54.4479,82.269,82.167,6.0]
[1646694458868,64.93480915,82.268,82.168,58.3662101]
[1646694459071,6.331,82.267,82.169,6.0]
[1646694459270,122.1,82.259,82.17,0.25]
[1646694459468,122.1,82.253,82.17,0.25]
[1646694459669,122.1,82.251,82.17,0.25]
[1646694459868,122.1,82.249,82.17,0.25]
[1646694460069,122.1,82.247,82.17,0.25]
[1646694460269,122.1,82.245,82.17,0.25]
[1646694460468,195.36,82.235,82.17,0.25]
[1646694460673,0.25,82.234,82.152,0.25]
[1646694460867,122.1,82.233,82.152,0.25]
[1646694461068,0.25,82.232,82.152,0.25]
[1646694461270,170.22907827,82.232,82.152,46.51771305]
[1646694461469,18.2607,82.22,82.152,46.51771305]
[1646694461669,56.17815792,82.219,82.152,46.26771305]
[1646694461867,56.17815792,82.219,82.153,6.0]
[1646694462068,56.17815792,82.219,82.13,18.2607]
[1646694462268,56.17815792,82.219,82.139,100.0]
[1646694462869,56.17815792,82.219,82.12,75.2933]
[1646694462870,18.262,82.21,82.14,18.2603]
[1646694463071,0.25,82.209,82.141,0.25]
[1646694463268,0.25,82.209,82.141,6.25]
[1646694464070,0.25,82.209,82.15,18.2582]
[1646694464272,0.25,82.209,82.142,122.1]
[1646694464273,0.25,82.218,82.152,53.34006991]
[1646694464669,0.25,82.218,82.153,6.0]
[1646694465073,122.1,82.209,82.153,6.0]
[1646694465271,0.25,82.208,82.142,6.0]
[1646694465871,0.25,82.208,82.143,64.56390728]
[1646694466071,0.25,82.208,82.144,6.0]
[1646694466272,122.1,82.212,82.144,6.0]
[1646694466473,122.1,82.21,82.144,6.0]
[1646694466672,122.1,82.208,82.135,6.0]
[1646694466873,0.25,82.207,82.136,0.25]
[1646694467073,18.2643,82.2,82.136,0.25]
[1646694467272,0.25,82.199,82.136,0.25]
[1646694467475,0.25,82.199,82.133,62.22290666]
[1646694467476,46.05839563,82.199,82.133,62.22290666]
[1646694467674,122.1,82.198,82.134,6.0]
[1646694467875,0.25,82.197,82.132,6.0]
[1646694468376,0.25,82.197,82.111,47.2479]
[1646694468377,18.267,82.19,82.12,18.2662]
[1646694468575,0.25,82.189,82.121,54.62595252]
[1646694468775,0.25,82.189,82.122,0.25]
[1646694468975,0.25,82.189,82.121,54.62595252]
[1646694469377,122.35,82.189,82.121,54.62595252]
[1646694469777,6.0,82.188,82.122,0.25]
[1646694470076,0.25,82.187,82.122,0.25]
[1646694470276,0.25,82.187,82.121,54.62595252]
[1646694470878,18.2689,82.18,82.121,54.62595252]
[1646694471079,12.336,82.179,82.121,54.62595252]
[1646694471278,56.16362357,82.178,82.121,54.62595252]
[1646694471578,6.25,82.177,82.121,54.62595252]
[1646694472781,6.086,82.192,82.122,0.25]
[1646694472983,29.15426359,82.207,82.122,0.25]
[1646694473191,6.085,82.252,82.123,0.27733095]
[1646694473389,6.083,82.238,82.125,0.27733095]
[1646694473688,48.8509,82.258,82.127,0.27733095]
[1646694473889,51.30207747,82.238,82.141,122.1]
[1646694474090,51.30207747,82.238,82.17,18.2521]